[Event "EOC-ch Playoff-B 2021"]
[Site "Online"]
[Date "2021.03.29"]
[Round "1.12"]
[White "Bashirli, Nail"]
[Black "Baklan, Vladimir"]
[Result "1/2-1/2"]
[ECO "B69"]
[WhiteElo "2382"]
[BlackElo "2587"]
[Annotator "ChessBase"]
[PlyCount "89"]
[EventDate "2021.03.29"]
[EventType "team-tourn"]
[EventCountry "NET"]
[SourceTitle "playchess.com"]
[Source "ChessBase"]
[SourceQuality "1"]
[TimeControl "900+5"]

1. e4 {[%emt 0:00:00]} c5 {[%emt 0:00:04]} 2. Nc3 {[%emt 0:00:02]} Nc6 {[%emt 0:00:01]} 3. Nf3 {[%emt 0:00:27]} d6 {[%emt 0:00:09]} 4. d4 {[%emt 0:00:02]} cxd4 {[%emt 0:00:01]} 5. Nxd4 {[%emt 0:00:01]} Nf6 {[%emt 0:00:01]} 6. Bg5 {[%emt 0:00:02]} e6 {[%emt 0:00:02]} 7. Qd2 {[%emt 0:00:01]} a6 {[%emt 0:00:01]} 8. O-O-O {[%emt 0:00:01]} Bd7 {[%emt 0:00:01]} 9. f4 {[%emt 0:00:01]} Be7 {[%emt 0:00:02]} 10. Nf3 {[%emt 0:00:03]} b5 {[%emt 0:00:02]} 11. Bxf6 {[%emt 0:00:09]} gxf6 {[%emt 0:00:02]} 12. Kb1 {[%emt 0:00:16]} Qa5 {[%emt 0:00:11]} 13. Bd3 {[%emt 0:00:09]} Rc8 {[%emt 0:00:07]} 14. f5 {[%emt 0:00:07]} Nb4 {[%emt 0:00:06]} 15. a3 {[%emt 0:00:40]} Nc6 {[%emt 0:00:03]} 16. Na2 {[%emt 0:02:17]} Qxd2 {[%emt 0:01:15]} 17. Rxd2 {[%emt 0:00:06]} Ne5 {[%emt 0:00:02]} 18. Nxe5 {[%emt 0:01:58]} fxe5 {[%emt 0:00:02]} 19. Nc3 {[%emt 0:00:50]} Bg5 {[%emt 0:00:56]} 20. Rf2 {[%emt 0:00:12]} Ke7 {[%emt 0:00:20]} 21. Rhf1 {[%emt 0:00:04]} Be8 {[%emt 0:00:22]} 22. g3 {[%emt 0:00:37]} h5 {[%emt 0:00:38]} 23. h4 {[%emt 0:00:04]} Be3 {[%emt 0:00:03]} 24. Rf3 {[%emt 0:00:03]} Bb6 {[%emt 0:00:09]} 25. Nd1 {[%emt 0:00:28]} Rg8 {[%emt 0:01:16]} 26. Be2 {[%emt 0:00:27]} d5 {[%emt 0:00:57]} 27. fxe6 {[%emt 0:01:26]} fxe6 {[%emt 0:00:08]} 28. exd5 {[%emt 0:00:22]} exd5 {[%emt 0:00:13]} 29. Nc3 {[%emt 0:00:41]} Rd8 {[%emt 0:00:35]} 30. Rf5 {[%emt 0:01:09]} Bd4 {[%emt 0:04:04]} 31. Bxh5 {[%emt 0:00:04]} Bxh5 {[%emt 0:01:27]} 32. Rxh5 {[%emt 0:00:03]} Bxc3 {[%emt 0:00:01]} 33. bxc3 {[%emt 0:01:12]} e4 {[%emt 0:00:07]} 34. Rh7+ {[%emt 0:01:06]} Ke6 {[%emt 0:00:03]} 35. Rh6+ {[%emt 0:00:01]} Ke5 {[%emt 0:00:02]} 36. Rhf6 {[%emt 0:00:38]} e3 {[%emt 0:00:02]} 37. R1f5+ {[%emt 0:00:27]} Ke4 {[%emt 0:00:02]} 38. Rf4+ {[%emt 0:00:01]} Ke5 {[%emt 0:00:02]} 39. R4f5+ {[%emt 0:00:50]} Ke4 {[%emt 0:00:02]} 40. Rf1 {[%emt 0:00:02]} Rde8 {[%emt 0:00:32]} 41. R1f4+ {[%emt 0:00:37]} Ke5 {[%emt 0:00:03]} 42. R4f5+ {[%emt 0:00:27]} Ke4 {[%emt 0:00:02]} 43. Rf4+ {[%emt 0:00:08]} Ke5 {[%emt 0:00:02]} 44. R4f5+ {[%emt 0:00:01]} Ke4 {[%emt 0:00:01]} 45. Rf4+ {[%emt 0:00:01]} 1/2-1/2

[Event "EOC-ch Playoff-B 2021"]
[Site "Online"]
[Date "2021.03.29"]
[Round "2.3"]
[White "Keymer, Vincent"]
[Black "Shahaliyev, Ismayil"]
[Result "1-0"]
[ECO "D38"]
[WhiteElo "2591"]
[BlackElo "2413"]
[Annotator "ChessBase"]
[PlyCount "77"]
[EventDate "2021.03.29"]
[EventType "team-tourn"]
[EventCountry "NET"]
[SourceTitle "playchess.com"]
[Source "ChessBase"]
[SourceQuality "1"]
[TimeControl "900+5"]

1. d4 {[%emt 0:00:00]} Nf6 {[%emt 0:00:03]} 2. c4 {[%emt 0:00:02]} e6 {[%emt 0:00:02]} 3. Nf3 {[%emt 0:00:02]} d5 {[%emt 0:00:02]} 4. Nc3 {[%emt 0:00:02]} Bb4 {[%emt 0:00:02]} 5. Qa4+ {[%emt 0:00:01]} Nc6 {[%emt 0:00:02]} 6. e3 {[%emt 0:00:02]} O-O {[%emt 0:00:03]} 7. Bd2 {[%emt 0:00:01]} a5 {[%emt 0:00:41]} 8. Qc2 {[%emt 0:00:52]} b6 {[%emt 0:00:24]} 9. Rc1 {[%emt 0:01:35]} Ne7 {[%emt 0:00:46]} 10. Be2 {[%emt 0:00:46]} dxc4 {[%emt 0:00:27]} 11. Bxc4 {[%emt 0:00:08]} Bb7 {[%emt 0:00:01]} 12. Be2 {[%emt 0:00:09]} Rc8 {[%emt 0:01:37]} 13. a3 {[%emt 0:01:10]} Bxc3 {[%emt 0:01:12]} 14. bxc3 {[%emt 0:00:11]} Qd6 {[%emt 0:00:16]} 15. Qb2 {[%emt 0:00:10]} c5 {[%emt 0:01:41]} 16. O-O {[%emt 0:00:16]} c4 {[%emt 0:00:16]} 17. Ne5 {[%emt 0:01:00]} Ne4 {[%emt 0:00:31]} 18. Be1 {[%emt 0:00:07]} Ba6 {[%emt 0:01:11]} 19. f3 {[%emt 0:00:09]} Nc5 {[%emt 0:01:02]} 20. Nxc4 {[%emt 0:01:41]} Bxc4 {[%emt 0:02:05]} 21. Bxc4 {[%emt 0:00:00]} Na4 {[%emt 0:00:43]} 22. Qb3 {[%emt 0:00:13]} Rxc4 {[%emt 0:00:03]} 23. Qxc4 {[%emt 0:00:00]} Qxa3 {[%emt 0:00:02]} 24. Bh4 {[%emt 0:02:58]} Nf5 {[%emt 0:01:20]} 25. Bf2 {[%emt 0:00:05]} Nd6 {[%emt 0:01:10]} 26. Qc6 {[%emt 0:00:08]} Rc8 {[%emt 0:00:29]} 27. Qd7 {[%emt 0:00:03]} Nxc3 {[%emt 0:00:16]} 28. Rxc3 {[%emt 0:00:06]} Qxc3 {[%emt 0:00:03]} 29. Qxd6 {[%emt 0:00:02]} b5 {[%emt 0:00:02]} 30. Qb6 {[%emt 0:01:04]} a4 {[%emt 0:00:29]} 31. Qxb5 {[%emt 0:00:06]} a3 {[%emt 0:00:01]} 32. Qa6 {[%emt 0:01:29]} h6 {[%emt 0:00:02]} 33. Rb1 {[%emt 0:00:43]} Qc2 {[%emt 0:00:13]} 34. Ra1 {[%emt 0:00:29]} Rb8 {[%emt 0:00:18]} 35. Qxa3 {[%emt 0:00:31]} Rb1+ {[%emt 0:00:03]} 36. Be1 {[%emt 0:00:02]} Rb3 {[%emt 0:00:16]} 37. Qa8+ {[%emt 0:00:03]} Kh7 {[%emt 0:00:02]} 38. Qe4+ {[%emt 0:00:03]} Qxe4 {[%emt 0:00:02]} 39. fxe4 {[%emt 0:00:00]} 1-0

[Event "EOC-ch Playoff-B 2021"]
[Site "Online"]
[Date "2021.03.29"]
[Round "2.8"]
[White "Baklan, Vladimir"]
[Black "Guliyev, Namig"]
[Result "1-0"]
[ECO "C42"]
[WhiteElo "2587"]
[BlackElo "2538"]
[Annotator "ChessBase"]
[PlyCount "85"]
[EventDate "2021.03.29"]
[EventType "team-tourn"]
[EventCountry "NET"]
[SourceTitle "playchess.com"]
[Source "ChessBase"]
[SourceQuality "1"]
[TimeControl "900+5"]

1. e4 {[%emt 0:00:00]} e5 {[%emt 0:00:02]} 2. Nf3 {[%emt 0:00:03]} Nf6 {[%emt 0:00:01]} 3. Nxe5 {[%emt 0:00:04]} d6 {[%emt 0:00:01]} 4. Nf3 {[%emt 0:00:01]} Nxe4 {[%emt 0:00:02]} 5. Nc3 {[%emt 0:00:03]} Nf6 {[%emt 0:00:02]} 6. d4 {[%emt 0:00:02]} Be7 {[%emt 0:00:03]} 7. h3 {[%emt 0:00:03]} O-O {[%emt 0:00:05]} 8. Bd3 {[%emt 0:00:03]} b6 {[%emt 0:00:13]} 9. O-O {[%emt 0:00:08]} Bb7 {[%emt 0:00:01]} 10. d5 {[%emt 0:00:43]} c6 {[%emt 0:00:06]} 11. dxc6 {[%emt 0:00:04]} Nxc6 {[%emt 0:00:01]} 12. Re1 {[%emt 0:00:03]} Re8 {[%emt 0:00:42]} 13. Bg5 {[%emt 0:00:12]} h6 {[%emt 0:00:03]} 14. Bh4 {[%emt 0:00:04]} Nh5 {[%emt 0:00:09]} 15. Bxe7 {[%emt 0:00:32]} Rxe7 {[%emt 0:00:02]} 16. Qd2 {[%emt 0:00:07]} Nf6 {[%emt 0:00:08]} 17. Bf1 {[%emt 0:00:23]} Rxe1 {[%emt 0:00:48]} 18. Rxe1 {[%emt 0:00:04]} Qd7 {[%emt 0:00:02]} 19. Nb5 {[%emt 0:00:25]} Rd8 {[%emt 0:00:10]} 20. c3 {[%emt 0:00:27]} a6 {[%emt 0:01:07]} 21. Nbd4 {[%emt 0:00:07]} Nxd4 {[%emt 0:00:18]} 22. Nxd4 {[%emt 0:00:04]} Re8 {[%emt 0:00:15]} 23. Rxe8+ {[%emt 0:00:14]} Qxe8 {[%emt 0:00:27]} 24. Nf5 {[%emt 0:00:46]} Qe4 {[%emt 0:01:27]} 25. Nxd6 {[%emt 0:00:20]} Qd5 {[%emt 0:00:07]} 26. Qxd5 {[%emt 0:01:39]} Bxd5 {[%emt 0:00:02]} 27. Bxa6 {[%emt 0:00:01]} Bxa2 {[%emt 0:00:03]} 28. Nc8 {[%emt 0:00:05]} Nd5 {[%emt 0:00:15]} 29. Bb7 {[%emt 0:00:04]} Nf4 {[%emt 0:00:53]} 30. Nxb6 {[%emt 0:00:09]} Kf8 {[%emt 0:00:03]} 31. h4 {[%emt 0:01:43]} Ke7 {[%emt 0:00:07]} 32. g3 {[%emt 0:00:06]} Nd3 {[%emt 0:00:02]} 33. b4 {[%emt 0:00:03]} Kd6 {[%emt 0:00:04]} 34. Be4 {[%emt 0:00:59]} Nb2 {[%emt 0:00:22]} 35. Kf1 {[%emt 0:00:34]} g5 {[%emt 0:00:03]} 36. hxg5 {[%emt 0:00:17]} hxg5 {[%emt 0:00:02]} 37. Ke1 {[%emt 0:00:01]} Ke5 {[%emt 0:00:08]} 38. Bc2 {[%emt 0:00:12]} f5 {[%emt 0:00:07]} 39. Kd2 {[%emt 0:00:12]} f4 {[%emt 0:00:03]} 40. Kc1 {[%emt 0:00:10]} fxg3 {[%emt 0:00:18]} 41. fxg3 {[%emt 0:00:04]} Nc4 {[%emt 0:00:01]} 42. Nxc4+ {[%emt 0:00:03]} Bxc4 {[%emt 0:00:02]} 43. Kd2 {[%emt 0:00:01]} 1-0

[Event "EOC-ch Playoff-B 2021"]
[Site "Online"]
[Date "2021.03.29"]
[Round "3.3"]
[White "Durarbayli, Vasif"]
[Black "Meier, Georg"]
[Result "1-0"]
[ECO "C02"]
[WhiteElo "2606"]
[BlackElo "2628"]
[Annotator "RC"]
[PlyCount "107"]
[EventDate "2021.03.29"]
[EventType "team-tourn"]
[EventCountry "NET"]
[SourceTitle "playchess.com"]
[Source "ChessBase"]
[SourceQuality "1"]
[TimeControl "900+5"]

1. e4 {[%emt 0:00:00]} e6 {[%emt 0:00:02]} 2. d4 {[%emt 0:00:02]} d5 {[%emt 0:00:01]} 3. e5 {[%emt 0:00:01]} c5 {[%emt 0:00:01]} 4. c3 {[%emt 0:00:01]} Nc6 {[%emt 0:00:01]} 5. Nf3 {[%emt 0:00:01]} Qb6 {[%emt 0:00:01]} 6. Bd3 {[%emt 0:00:02]} cxd4 {[%emt 0:00:05]} 7. cxd4 {[%emt 0:00:01]} Bd7 {[%emt 0:00:03]} 8. O-O {[%emt 0:00:01]} Nxd4 {[%emt 0:00:02]} 9. Nbd2 {[%emt 0:00:02]} Bc5 {[%emt 0:00:04]} 10. Nxd4 {[%emt 0:00:07]} Bxd4 {[%emt 0:00:04]} 11. Nf3 {[%emt 0:00:01]} Ne7 {[%emt 0:00:34]} 12. Rb1 {[%emt 0:00:04]} Nc6 {[%emt 0:00:34]} 13. Bf4 {[%emt 0:00:10]} Bc5 {[%emt 0:00:53]} 14. Ng5 {[%emt 0:02:52]} Be7 {[%emt 0:03:39]} 15. Qh5 {[%emt 0:03:20]} g6 {[%emt 0:00:14]} 16. Qf3 {[%emt 0:00:21]} Nd4 {[%emt 0:05:25]} 17. Qd1 {[%emt 0:00:38]} Nf5 {[%emt 0:02:01]} 18. Bxf5 {[%emt 0:00:11]} exf5 {[%emt 0:00:02]} 19. Qxd5 {[%emt 0:00:02]} Be6 {[%emt 0:00:02]} 20. Nxe6 {[%emt 0:00:01]} fxe6 {[%emt 0:00:00]} 21. Qc4 {[%emt 0:00:52]} Kf7 {[%emt 0:00:59]} 22. Be3 {[%emt 0:00:35]} Qb4 {[%emt 0:01:35]} 23. Qxb4 {[%emt 0:02:47]} Bxb4 {[%emt 0:00:00]} 24. Rfd1 {[%emt 0:00:01]} Rhd8 {[%emt 0:00:21]} 25. Rxd8 {[%emt 0:00:06]} Rxd8 {[%emt 0:00:00]} 26. a3 {[%emt 0:00:03]} Be7 {[%emt 0:00:06]} 27. Bxa7 {[%emt 0:00:07]} f4 {[%emt 0:00:08]} 28. Kf1 {[%emt 0:00:27]} Rd2 {[%emt 0:00:09]} 29. Ke1 {[%emt 0:01:08]} Rd5 {[%emt 0:00:01]} 30. Bb8 {[%emt 0:00:05]} Bc5 {[%emt 0:00:10]} 31. Ke2 {[%emt 0:00:21]} Bd4 {[%emt 0:00:05]} 32. Kf3 {[%emt 0:00:22]} Bxe5 {[%emt 0:00:02]} 33. Bxe5 {[%emt 0:00:01]} Rxe5 {[%emt 0:00:00]} 34. Kxf4 {[%emt 0:00:14]} Re2 {[%emt 0:00:02]} 35. Kf3 {[%emt 0:00:01]} Rc2 {[%emt 0:00:01]} 36. h4 {[%emt 0:00:01]} h5 {[%emt 0:00:07]} 37. g3 {[%emt 0:00:06]} Kf6 {[%emt 0:00:14]} 38. a4 {[%emt 0:00:02]} e5 {[%emt 0:00:07]} 39. a5 {[%emt 0:00:06]} Kf5 {[%emt 0:00:03]} 40. Ke3 {[%emt 0:00:06]} e4 {[%emt 0:00:09]} 41. Rd1 {[%emt 0:00:05]} Rxb2 {[%emt 0:00:02]} 42. Rd5+ {[%emt 0:00:01]} Kf6 {[%emt 0:00:03]} 43. Kxe4 {[%emt 0:00:19]} Rxf2 {[%emt 0:00:15]} 44. Rb5 {[%emt 0:00:02]} Ra2 {[%emt 0:00:02]} 45. Rb6+ {[%emt 0:00:02]} Kg7 {[%emt 0:00:02]} 46. Rxb7+ {[%emt 0:00:01]} Kh6 {[%emt 0:00:00]} 47. Rb5 {[%emt 0:00:15]} Ra3 {[%emt 0:00:03]} 48. Rg5 {[%emt 0:00:08]} Kg7 {[%emt 0:00:16]} 49. Kd4 {[%emt 0:00:02]} Kf6 {[%emt 0:00:02]} 50. Kc4 {[%emt 0:00:01]} Ra1 {[%emt 0:00:01]} 51. Kb5 {[%emt 0:00:02]} Rb1+ {[%emt 0:00:02]} 52. Kc6 {[%emt 0:00:01]} Rc1+ {[%emt 0:00:04]} 53. Kb6 {[%emt 0:00:02]} Rb1+ {[%emt 0:00:02]} 54. Rb5 {[%emt 0:00:12]} 1-0

[Event "EOC-ch Playoff-B 2021"]
[Site "Online"]
[Date "2021.03.29"]
[Round "3.12"]
[White "Medvegy, Zoltan"]
[Black "Bashirli, Nail"]
[Result "1/2-1/2"]
[ECO "A28"]
[WhiteElo "2527"]
[BlackElo "2382"]
[Annotator "ChessBase"]
[PlyCount "95"]
[EventDate "2021.03.29"]
[EventType "team-tourn"]
[EventCountry "NET"]
[SourceTitle "playchess.com"]
[Source "ChessBase"]
[SourceQuality "1"]
[TimeControl "900+5"]

1. c4 {[%emt 0:00:00]} Nf6 {[%emt 0:00:10]} 2. Nc3 {[%emt 0:00:05]} e5 {[%emt 0:00:03]} 3. Nf3 {[%emt 0:00:02]} Nc6 {[%emt 0:00:04]} 4. e3 {[%emt 0:00:01]} Bb4 {[%emt 0:00:07]} 5. Qc2 {[%emt 0:00:02]} O-O {[%emt 0:00:12]} 6. Nd5 {[%emt 0:00:07]} Be7 {[%emt 0:00:15]} 7. Ng5 {[%emt 0:02:47]} g6 {[%emt 0:00:03]} 8. Nxe7+ {[%emt 0:00:18]} Qxe7 {[%emt 0:00:30]} 9. a3 {[%emt 0:01:48]} d5 {[%emt 0:00:27]} 10. cxd5 {[%emt 0:00:05]} Bf5 {[%emt 0:00:54]} 11. d3 {[%emt 0:00:15]} Nxd5 {[%emt 0:00:18]} 12. Ne4 {[%emt 0:00:49]} h5 {[%emt 0:02:08]} 13. h3 {[%emt 0:01:11]} Rad8 {[%emt 0:01:19]} 14. Be2 {[%emt 0:00:12]} h4 {[%emt 0:01:09]} 15. b4 {[%emt 0:01:16]} a6 {[%emt 0:01:00]} 16. Bb2 {[%emt 0:00:06]} Nf6 {[%emt 0:00:14]} 17. Nc5 {[%emt 0:00:51]} b6 {[%emt 0:02:31]} 18. Nxa6 {[%emt 0:00:24]} Rd6 {[%emt 0:00:27]} 19. b5 {[%emt 0:01:04]} e4 {[%emt 0:00:30]} 20. d4 {[%emt 0:01:03]} Nxd4 {[%emt 0:01:15]} 21. Bxd4 {[%emt 0:00:03]} Rxd4 {[%emt 0:00:02]} 22. exd4 {[%emt 0:00:57]} e3 {[%emt 0:00:02]} 23. Qxc7 {[%emt 0:01:22]} exf2+ {[%emt 0:00:02]} 24. Kxf2 {[%emt 0:00:01]} Ne4+ {[%emt 0:00:02]} 25. Kg1 {[%emt 0:00:12]} Qg5 {[%emt 0:00:01]} 26. Kh2 {[%emt 0:00:41]} Rc8 {[%emt 0:01:30]} 27. Qe5 {[%emt 0:00:03]} f6 {[%emt 0:00:01]} 28. Qd5+ {[%emt 0:00:07]} Kh8 {[%emt 0:00:27]} 29. Rhf1 {[%emt 0:00:59]} Rc2 {[%emt 0:00:50]} 30. Bf3 {[%emt 0:00:30]} Qf4+ {[%emt 0:00:32]} 31. Kg1 {[%emt 0:00:03]} Qe3+ {[%emt 0:00:01]} 32. Kh2 {[%emt 0:00:03]} Qf4+ {[%emt 0:00:02]} 33. Kg1 {[%emt 0:00:07]} Qe3+ {[%emt 0:00:05]} 34. Kh1 {[%emt 0:00:04]} Ng3+ {[%emt 0:00:20]} 35. Kh2 {[%emt 0:00:02]} Qf4 {[%emt 0:00:01]} 36. Qd8+ {[%emt 0:00:08]} Kg7 {[%emt 0:00:02]} 37. Qe7+ {[%emt 0:00:01]} Kh6 {[%emt 0:00:02]} 38. Kg1 {[%emt 0:00:11]} Qxd4+ {[%emt 0:00:08]} 39. Kh2 {[%emt 0:00:02]} Qf4 {[%emt 0:00:02]} 40. Kg1 {[%emt 0:00:08]} Bxh3 {[%emt 0:00:08]} 41. Qf8+ {[%emt 0:00:06]} Kg5 {[%emt 0:00:02]} 42. Rae1 {[%emt 0:00:03]} Qxf3 {[%emt 0:00:11]} 43. Re5+ {[%emt 0:00:06]} f5 {[%emt 0:00:11]} 44. Qd8+ {[%emt 0:00:06]} Kh5 {[%emt 0:00:07]} 45. Qh8+ {[%emt 0:00:03]} Kg5 {[%emt 0:00:02]} 46. Qd8+ {[%emt 0:00:03]} Kh5 {[%emt 0:00:03]} 47. Qh8+ {[%emt 0:00:10]} Kg5 {[%emt 0:00:01]} 48. Qd8+ {[%emt 0:00:05]} 1/2-1/2